bitfinex/quotes_ETHUSD_20241004
["timestamp","ask_amount","ask_price","bid_price","bid_amount"]
[1728045198232,9.68303319,2388.6,2387.9,1.1775]
[1728045198406,9.68303319,2388.6,2388.0,0.55]
[1728045198612,9.68303319,2388.6,2387.7,0.1201552]
[1728045198613,5.49646319,2388.2,2387.7,4.3082452]
[1728045198817,9.68381319,2388.2,2387.7,0.1201552]
[1728045199028,4.18758,2388.1,2387.7,0.1201552]
[1728045199432,4.1876,2388.0,2387.7,0.1201552]
[1728045199808,0.7798,2388.4,2387.7,4.3082752]
[1728045200005,5.49646319,2389.3,2388.1,4.18732]
[1728045200006,0.8309,2389.1,2388.1,4.18732]
[1728045200258,0.8309,2389.1,2387.9,4.18765]
[1728045200259,4.187,2388.4,2387.9,0.34758923]
[1728045200546,4.187,2388.4,2387.8,0.768]
[1728045200750,5.01661,2389.1,2387.7,4.3081752]
[1728045200751,4.18758,2388.1,2387.7,0.1201552]
[1728045200908,4.18795,2387.8,2387.7,0.1201552]
[1728045201246,4.18773,2388.0,2387.7,0.1201552]
[1728045201455,4.18795,2387.8,2387.7,0.1201552]
[1728045202321,4.1878,2387.9,2387.7,0.1201552]
[1728045202630,4.18754,2388.1,2387.7,0.1201552]
[1728045202989,5.01294,2388.4,2387.8,0.55]
[1728045203196,8.37289,2388.7,2388.3,1.19742083]
[1728045203393,4.94359,2388.8,2388.3,1.19742083]
[1728045203727,0.7573,2388.8,2388.5,0.55]
[1728045203940,8.37162,2389.1,2388.6,0.64742083]
[1728045204090,0.7971,2389.2,2388.7,0.55]
[1728045204446,4.18581,2389.1,2388.6,0.64742083]
[1728045204642,4.18672,2388.5,2387.8,4.97203]
[1728045204850,4.18672,2388.5,2387.9,0.55]
[1728045205065,4.18672,2388.5,2388.0,0.55647651]
[1728045205329,4.18726,2388.2,2388.1,0.5562983]
[1728045205535,0.8041,2388.4,2388.1,0.62556686]
[1728045205688,4.18499,2389.5,2388.4,4.18687]
[1728045205689,4.18497,2389.5,2388.4,4.18687]
[1728045205892,9.68072319,2390.0,2388.5,4.18671]
[1728045205893,4.18575,2389.1,2388.5,4.18671]
[1728045206129,4.18585,2389.0,2388.4,4.26525035]
[1728045206371,4.18603,2388.9,2388.5,0.55]
[1728045206907,0.8015,2389.4,2388.7,0.55]
[1728045207020,4.98666,2389.4,2388.6,0.06117864]
[1728045207214,4.98666,2389.4,2388.2,1.40447619]
[1728045207215,8.37194,2389.0,2388.2,0.7574]
[1728045207422,0.8015,2389.4,2388.3,0.61950222]
[1728045207614,4.18647,2388.7,2388.3,0.06950222]
[1728045207818,4.18688,2388.5,2388.0,0.64707619]
[1728045208050,4.18688,2388.5,2388.1,0.06218614]
[1728045208255,0.8104,2388.8,2388.1,0.06218614]
[1728045208256,0.43757343,2388.6,2388.1,0.06218614]
[1728045208455,0.43757343,2388.6,2388.1,4.18732]
[1728045208774,0.43757343,2388.6,2388.5,4.18672]
[1728045208991,4.18594,2389.0,2388.3,4.60624]
[1728045209270,4.62325024,2389.1,2388.4,0.06163509]
[1728045209574,4.18585,2389.0,2388.4,4.73687]
[1728045209886,0.43754024,2389.1,2388.5,0.06143612]
[1728045210044,4.18616,2388.9,2388.5,0.06143612]
[1728045210253,4.1862,2388.8,2388.5,0.06143612]
[1728045210580,4.18641,2388.7,2388.5,0.06143612]
[1728045210782,4.18631,2388.8,2388.5,0.06143612]
[1728045211076,0.43754024,2389.1,2388.6,4.18654]
[1728045211261,0.43754024,2389.1,2388.7,0.55]
[1728045211475,0.43754024,2389.1,2388.7,0.62842934]
[1728045211768,0.43754024,2389.1,2388.7,4.81467934]
[1728045211934,0.43754024,2389.1,2389.0,4.18585]
[1728045212137,0.43754024,2389.1,2388.7,0.62842934]
[1728045212138,0.43754024,2389.1,2388.9,4.18588]
[1728045212346,0.43754024,2389.1,2389.0,4.73585]
[1728045212575,0.7885,2389.9,2389.4,4.73513]
[1728045212734,5.49646319,2390.9,2389.5,5.52867]
[1728045212735,0.43748881,2389.6,2389.5,5.52867]
[1728045212939,0.43748881,2389.6,2389.5,1.3437]
[1728045213239,0.43748881,2389.6,2389.5,5.52867]
[1728045213440,4.18351,2390.4,2389.6,4.73479]
[1728045213674,0.43746103,2390.2,2389.9,4.18427]
[1728045213893,4.18367,2390.3,2389.8,0.55]
[1728045214190,4.18379,2390.2,2389.8,0.55]
[1728045214387,4.18401,2390.1,2389.6,4.73476]
[1728045214594,0.7885,2390.7,2390.0,0.55]
[1728045214901,8.22061201,2391.5,2389.9,4.18427]
[1728045214902,4.18271,2390.8,2390.2,1.3019]
[1728045215067,4.18372,2390.3,2389.8,0.7519]
[1728045215393,4.18372,2390.3,2389.2,4.18546]
[1728045215394,4.18393,2390.1,2389.6,0.55]
[1728045215598,4.18333,2390.5,2389.8,0.55]
[1728045215892,4.18325,2390.5,2389.9,4.18425]
[1728045216090,0.7861,2390.7,2390.0,4.18402]
[1728045216294,4.18223,2391.1,2390.1,4.73376]
[1728045216295,4.1828,2390.8,2390.1,4.73376]
[1728045216504,4.18285,2390.8,2390.2,4.18368]
[1728045216705,4.18285,2390.8,2390.1,4.73379]
[1728045216706,0.7861,2391.1,2390.1,1.3394]
[1728045217147,4.184,2390.1,2389.7,1.2086]
[1728045217350,4.184,2390.1,2389.7,0.4192]
[1728045217567,4.18376,2390.2,2389.7,0.4192]
[1728045217785,4.18421,2390.0,2389.4,4.98484]
[1728045218000,4.18409,2390.1,2389.4,4.98471]
[1728045218153,4.18404,2390.1,2389.6,4.18475]
[1728045218503,4.18317,2390.6,2389.5,4.18496]
[1728045218803,0.7996,2390.8,2389.4,1.2189]
[1728045218804,4.18382,2390.2,2389.4,1.2189]
[1728045219003,4.18358,2390.3,2389.7,4.18454]
[1728045219294,4.18358,2390.3,2389.4,1.2189]
[1728045219295,8.36844,2390.0,2389.4,4.9848]
[1728045219603,4.18385,2390.2,2389.6,4.18478]
[1728045219910,3.7996,2390.8,2389.8,0.55]
[1728045220051,4.18371,2390.3,2389.5,0.55]
[1728045220253,4.1835,2390.4,2390.0,0.55]
[1728045220451,4.18385,2390.2,2390.0,0.55]
[1728045220688,4.18385,2390.2,2389.7,4.18461]
[1728045221015,4.18313,2390.6,2390.0,0.55]
[1728045221302,4.1831,2390.6,2390.0,0.55]
[1728045221512,4.18283,2390.8,2390.1,4.95403]
[1728045221724,4.18328,2390.5,2390.2,0.55]
[1728045221873,4.18318,2390.6,2390.2,0.55]
[1728045222070,4.94598,2391.1,2390.1,0.7702]
[1728045222313,4.18352,2390.4,2390.1,0.7702]
[1728045222516,4.18398,2390.1,2389.7,1.176]
[1728045222726,4.18449,2389.8,2389.4,3.7568]
[1728045223016,4.18408,2390.1,2389.1,0.8209]
[1728045223177,4.18428,2389.9,2389.1,0.8209]
[1728045223378,4.18545,2389.3,2388.7,4.18626]
[1728045223688,4.18565,2389.2,2388.6,4.18653]
[1728045224214,4.9678,2389.6,2388.5,5.00762]
[1728045224215,4.18524,2389.4,2388.8,4.1861]
[1728045224420,4.18487,2389.6,2388.5,6.31736319]
[1728045224726,4.18475,2389.7,2389.1,4.18559]
[1728045224928,8.36948,2389.7,2389.1,8.37117]
[1728045225073,8.36948,2389.7,2388.9,0.4192]
[1728045225074,4.18503,2389.5,2389.0,0.55]
[1728045225274,4.18503,2389.5,2389.0,4.73583]
[1728045225486,4.18487,2389.6,2389.0,0.55]
[1728045225704,4.96736,2389.9,2388.9,4.73593]
[1728045225924,4.1848,2389.6,2389.1,4.73567]
[1728045226105,4.1848,2389.6,2389.1,0.55]
[1728045226306,4.18499,2389.5,2389.0,4.73568]
[1728045226474,4.18455,2389.8,2389.2,0.55]
[1728045226679,4.18455,2389.8,2389.4,0.55]
[1728045226926,4.18417,2390.0,2389.4,0.55]
[1728045227213,4.18457,2389.8,2389.4,0.55]
[1728045227416,0.7629,2390.7,2389.4,0.55]
[1728045227639,4.18409,2390.1,2389.6,0.55]
[1728045227910,4.18417,2390.0,2389.6,0.55]
[1728045228277,4.18349,2390.4,2389.9,4.18419]
[1728045228478,4.18419,2390.0,2389.8,0.55]
[1728045228708,0.7629,2390.7,2389.4,0.55]
[1728045228709,4.18439,2389.9,2389.4,0.55]
[1728045228928,4.1848,2389.6,2389.4,0.55]
[1728045229117,4.1848,2389.6,2388.7,4.18634]
[1728045229118,4.18497,2389.5,2389.0,0.7695]
[1728045229333,0.7869,2390.0,2389.0,0.7695]
[1728045229334,4.1855,2389.2,2389.0,0.7695]
[1728045229618,4.1855,2389.2,2388.1,9.68386319]
[1728045229619,4.18603,2388.9,2388.3,4.18697]
[1728045229788,4.18631,2388.8,2388.3,4.18697]
[1728045229996,0.7875,2389.3,2388.2,0.7695]
[1728045229997,4.18641,2388.7,2388.4,0.06864858]
[1728045230185,4.18672,2388.5,2388.4,0.06864858]
[1728045230398,4.18579,2389.1,2387.8,1.15287322]
[1728045230579,4.18655,2388.6,2388.1,4.18733]
[1728045230798,4.18655,2388.6,2387.9,0.4192]
[1728045230799,4.18622,2388.8,2387.9,0.4192]
[1728045231000,4.18622,2388.8,2388.2,4.18715]
[1728045231001,8.37257,2388.8,2388.2,4.18715]
[1728045231227,4.18622,2388.8,2388.3,4.18703]
[1728045231395,4.18585,2389.0,2388.3,4.18703]
[1728045231581,4.18585,2389.0,2388.4,0.7545]
[1728045231782,4.1856,2389.2,2388.4,0.7545]
[1728045231985,8.37123,2389.2,2388.6,4.18653]
[1728045232206,8.37123,2389.2,2388.4,0.7545]
[1728045232207,4.6228798,2389.4,2388.7,0.55]
[1728045232408,4.18524,2389.4,2389.0,0.55]
[1728045232609,4.62279868,2389.4,2389.0,0.55]
[1728045233029,0.43755868,2389.4,2389.0,0.55]
[1728045233337,0.43755868,2389.4,2388.4,0.7545]
[1728045233338,0.43755868,2389.4,2388.6,0.55]
[1728045233543,4.18574,2389.1,2388.5,4.73656]
[1728045233699,4.18545,2389.3,2388.7,0.55]
[1728045234018,4.18569,2389.1,2388.7,0.55]
[1728045234221,4.18565,2389.2,2388.8,0.55]
[1728045234432,4.18545,2389.3,2388.8,0.55]
[1728045234433,4.18545,2389.3,2388.8,4.7361]
[1728045234600,4.18558,2389.2,2388.8,0.55]
[1728045234920,0.43755868,2389.4,2388.8,0.55]
[1728045234921,4.1854,2389.3,2388.9,0.55]
[1728045235121,4.18565,2389.2,2388.9,0.55]
[1728045235340,0.43755868,2389.4,2388.7,0.55]
[1728045235341,4.18577,2389.1,2388.7,0.55]
[1728045235522,4.1857,2389.1,2388.5,4.18659]
[1728045235728,4.1857,2389.1,2388.6,4.18646]
[1728045235936,4.18623,2388.8,2388.4,3.7545]
[1728045236096,4.18611,2388.9,2388.0,5.34166048]
[1728045236097,4.1868,2388.5,2388.0,5.34166048]
[1728045236470,0.43755868,2389.4,2388.0,5.34166048]
[1728045236471,4.1854,2389.3,2388.5,0.7826]
[1728045236601,1.25325868,2389.4,2388.5,0.7826]
[1728045236801,4.18603,2388.9,2388.5,4.96919]
[1728045237003,4.1855,2389.2,2388.3,4.18693]
[1728045237350,4.18687,2388.5,2388.4,0.05496019]
[1728045237845,4.187,2388.4,2387.9,4.18776]
[1728045238144,4.18755,2388.1,2388.0,0.05574812]
[1728045238548,4.18729,2388.2,2387.7,1.3219552]
[1728045238705,4.18743,2388.1,2388.0,0.06210958]
[1728045239045,0.7736,2388.7,2387.7,0.1201552]
[1728045239046,4.18702,2388.4,2387.7,0.1201552]
[1728045239229,8.37476,2388.2,2388.0,0.05589862]
[1728045239546,4.18663,2388.6,2388.1,0.06978109]
[1728045239547,4.18666,2388.6,2388.1,0.06978109]
[1728045239729,4.18634,2388.8,2388.2,5.00352]
[1728045239896,4.18646,2388.7,2388.2,5.00352]
[1728045240097,4.18658,2388.6,2388.3,0.07922731]
[1728045240349,0.7998,2389.2,2388.3,0.07922731]
[1728045240647,4.18683,2388.5,2388.2,0.76]
[1728045240813,4.18683,2388.5,2388.4,0.07896609]
[1728045241199,4.18768,2388.0,2387.7,0.1201552]
[1728045241401,4.18759,2388.1,2387.7,0.1201552]
[1728045241402,4.18778,2387.9,2387.7,0.1201552]
[1728045241623,4.18778,2387.9,2387.8,0.08053374]
[1728045241949,4.18778,2387.9,2387.7,0.1201552]
[1728045241950,4.18795,2387.8,2387.7,0.1201552]
[1728045242443,4.99425,2387.8,2387.7,0.1201552]
[1728045243158,7.99425,2387.8,2387.7,0.1201552]
[1728045243446,4.18953,2386.9,2386.8,0.84933703]
[1728045243760,4.18971,2386.8,2386.7,0.84933703]
[1728045243985,4.18971,2386.8,2386.6,1.62549209]
[1728045243986,4.18988,2386.7,2386.6,1.27400555]
[1728045244130,4.18988,2386.7,2386.6,0.87574895]
[1728045244332,4.19023,2386.5,2386.4,1.22723549]
[1728045244749,4.19023,2386.5,2386.4,0.35148654]
[1728045244750,4.94693,2386.5,2386.4,0.35148654]
[1728045245051,4.19058,2386.3,2386.2,1.27400555]
[1728045245267,4.94695,2386.5,2386.2,0.8755139]
[1728045245416,3.0,2387.0,2386.3,0.87521358]
[1728045245417,4.18964,2386.9,2386.3,0.87521358]
[1728045245623,4.18955,2386.9,2386.5,0.87521358]
[1728045245938,4.18926,2387.1,2386.6,0.87521358]
[1728045246119,4.18947,2387.0,2386.6,0.87521358]
[1728045246330,4.18935,2387.1,2386.6,0.87521358]
[1728045246561,4.94565,2387.3,2386.7,0.55]
[1728045246562,4.18895,2387.3,2386.7,0.55]
[1728045246855,4.1886,2387.5,2386.8,5.84705358]
[1728045247018,0.8311,2387.6,2386.8,0.87521358]
[1728045247019,6.32756319,2387.6,2386.8,0.87521358]
[1728045247204,4.18953,2386.9,2386.7,0.87521358]
[1728045247404,6.32756319,2387.6,2386.6,0.87521358]
[1728045247405,4.18988,2386.7,2386.6,0.87521358]
[1728045247612,4.19006,2386.6,2386.5,0.87521358]
[1728045247842,4.19023,2386.5,2386.4,0.87521358]
[1728045248042,4.19023,2386.5,2386.3,0.87521358]
[1728045248252,4.19041,2386.4,2386.3,0.87521358]
[1728045248478,4.19058,2386.3,2386.1,0.87521358]
[1728045248631,4.19063,2386.3,2386.1,0.87521358]
[1728045248990,0.7918,2386.9,2386.3,4.19057]
[1728045249196,0.7918,2386.9,2386.3,0.87469656]
[1728045249197,4.19032,2386.5,2386.3,0.87469656]
[1728045249474,4.19028,2386.5,2386.2,0.87469656]
[1728045249658,4.19051,2386.4,2386.2,0.87469656]
[1728045249859,4.19058,2386.3,2386.2,0.09141267]
[1728045250633,4.19058,2386.3,2386.0,0.87469656]
[1728045250837,4.1911,2386.1,2385.9,0.87469656]
[1728045251036,4.19129,2385.9,2385.7,0.87469656]
[1728045251385,4.19131,2385.9,2385.7,0.87469656]
[1728045251946,4.19146,2385.8,2385.6,0.87469656]
[1728045252141,0.7771,2386.1,2385.7,0.55]
[1728045252340,4.19181,2385.6,2385.5,0.87469656]
[1728045252571,4.19199,2385.5,2385.4,0.87469656]
[1728045252982,4.19216,2385.4,2385.3,0.99485176]
[1728045253165,6.27356319,2386.1,2385.3,0.99485176]
[1728045253367,4.19216,2385.4,2385.3,0.99485176]
[1728045253684,4.97816,2385.4,2385.3,0.1201552]
[1728045253898,0.786,2385.3,2384.9,0.99459965]
[1728045254074,4.19322,2384.8,2384.5,1.69867406]
[1728045254247,4.19287,2385.0,2384.5,1.69867406]
[1728045254441,0.786,2385.3,2384.5,1.69867406]
[1728045254668,4.19259,2385.2,2384.5,1.69867406]
[1728045254993,4.19263,2385.2,2384.6,4.19345]
[1728045255137,3.0,2385.5,2385.0,4.19285]
[1728045255539,3.0,2385.5,2384.8,4.19311]
[1728045255781,3.0,2385.8,2384.6,5.89212406]
[1728045256003,5.02133,2385.2,2384.6,1.69867406]
[1728045256142,5.02133,2385.2,2384.6,4.19352]
[1728045256680,0.7998,2385.7,2385.1,4.19256]
[1728045256889,0.7998,2385.7,2385.1,4.19261]
[1728045257054,0.7998,2385.7,2385.1,8.38516]
[1728045257239,4.19216,2385.5,2384.9,5.89156406]
[1728045257439,0.7998,2385.7,2384.9,4.19289]
[1728045257440,8.38389,2385.6,2384.9,4.19289]
[1728045257682,0.65735557,2385.4,2384.9,4.19289]
[1728045257884,4.19235,2385.3,2384.7,5.89191406]
[1728045258184,4.19288,2385.0,2384.6,1.69867406]
[1728045258338,4.19333,2384.8,2384.6,1.69867406]
[1728045258540,0.7786,2385.0,2384.5,1.69867406]
[1728045258541,4.19339,2384.7,2384.5,1.69867406]
[1728045258743,4.19357,2384.6,2384.3,1.69867406]
[1728045258970,4.1933,2384.8,2384.3,1.69867406]
[1728045259214,0.7786,2385.0,2384.4,1.77717454]
[1728045259413,4.19375,2384.5,2384.4,1.77717454]
[1728045259614,4.19375,2384.5,2384.4,0.07850048]
[1728045259885,4.19359,2384.6,2384.4,0.07850048]
[1728045260131,0.7786,2385.0,2384.4,1.77717454]
[1728045260285,0.46417849,2386.0,2384.5,5.89231406]
[1728045260286,0.8052,2385.3,2384.5,5.89231406]
[1728045260483,0.65735557,2385.4,2384.6,1.69867406]
[1728045260725,0.65735557,2385.4,2385.1,4.19252]
[1728045260904,0.65735557,2385.4,2385.2,4.19249]
[1728045261102,0.65735557,2385.4,2385.1,4.19267]
[1728045261310,0.65735557,2385.4,2385.3,4.19234]
[1728045261501,4.99639,2386.0,2385.7,4.19161]
[1728045261502,0.8052,2386.0,2385.7,4.19161]
[1728045261712,4.19165,2385.7,2385.1,4.19258]
[1728045261913,4.19129,2385.9,2385.4,0.55]
[1728045262091,1.46248764,2386.0,2385.6,0.55]
[1728045262585,1.46248764,2386.0,2385.5,4.74198]
[1728045262786,4.1914,2385.9,2385.4,0.55]
[1728045263003,4.19256,2385.2,2384.9,0.55]
[1728045263209,0.769,2384.9,2384.2,1.77518402]
[1728045263450,0.769,2384.9,2382.9,5.18841522]
[1728045263451,4.19551,2383.5,2383.4,3.04323135]
[1728045263606,4.19481,2383.9,2383.1,3.04323135]
[1728045263607,3.00503551,2383.4,2383.1,3.04323135]
[1728045263801,4.19481,2383.9,2383.0,3.04323135]
[1728045264054,4.19516,2383.7,2383.0,7.23948135]
[1728045264252,3.0,2383.8,2383.0,3.04323135]
[1728045264475,3.0,2383.8,2381.9,5.06826002]
[1728045264476,3.0,2383.0,2382.3,6.63804839]
[1728045264753,3.0,2383.0,2381.9,4.26134832]
[1728045264754,4.19815,2382.0,2381.9,3.59481704]
[1728045264924,3.0,2382.3,2381.9,3.04248865]
[1728045265126,4.19832,2381.9,2381.8,3.59481704]
[1728045265461,4.19832,2381.9,2381.6,4.26134832]
[1728045265605,4.1976,2382.4,2381.8,3.58938101]
[1728045265803,3.0,2382.6,2381.8,3.58938101]
[1728045265804,4.19813,2382.1,2382.0,3.03924947]
[1728045266027,4.19813,2382.1,2381.8,3.59011344]
[1728045266248,4.19832,2381.9,2381.8,3.59011344]
[1728045266457,4.19832,2381.9,2381.7,3.59011344]
[1728045266619,7.9512,2381.8,2381.7,3.59011344]
[1728045266803,4.19868,2381.7,2381.4,4.26134832]
[1728045267001,9.69514319,2381.7,2381.6,3.58722054]
[1728045267205,4.19885,2381.6,2381.5,3.58722054]
[1728045267514,4.19885,2381.6,2381.3,4.26134832]
[1728045267515,4.19921,2381.4,2381.3,4.26134832]
[1728045267844,0.7527,2381.8,2381.3,4.26134832]
[1728045268015,4.19674,2382.8,2380.5,0.7537]
[1728045268016,3.0,2382.1,2381.7,3.58445764]
[1728045268365,4.198,2382.1,2381.9,3.58438574]
[1728045268652,0.7922,2382.3,2382.0,3.58438574]
[1728045268808,0.7825,2382.8,2382.2,3.58238551]
[1728045269009,0.7825,2382.8,2382.6,3.03311683]
[1728045269348,5.49646319,2383.2,2382.6,3.58286925]
[1728045269509,4.19659,2382.9,2382.8,3.03235358]
[1728045269906,4.19556,2383.5,2382.8,3.03307037]
[1728045270099,4.19556,2383.5,2382.4,4.26134832]
[1728045270100,4.19603,2383.2,2383.1,2.59974337]
[1728045270646,4.19639,2383.0,2382.8,3.03307037]
[1728045270855,4.19656,2382.9,2382.4,4.26134832]
[1728045271005,4.19656,2382.9,2382.8,3.03297369]
[1728045271341,4.19656,2382.9,2382.8,0.84497148]
[1728045271342,8.00806,2382.9,2382.8,0.84497148]
[1728045271652,7.19744,2382.4,2382.3,3.58270018]
[1728045271957,7.19762,2382.3,2382.2,3.58270018]
[1728045272106,7.19762,2382.3,2382.1,4.26134832]
[1728045272107,3.0,2382.2,2382.1,4.26134832]
[1728045272308,3.0,2382.3,2382.1,4.26134832]
[1728045272535,4.19715,2382.6,2382.2,4.26134832]
[1728045272749,4.19683,2382.8,2382.3,4.26134832]
[1728045272912,4.19691,2382.7,2382.6,3.58309249]
[1728045273120,4.19691,2382.7,2382.6,3.58297451]
[1728045273320,4.19744,2382.4,2382.3,3.58297451]
[1728045273653,4.19762,2382.3,2382.2,3.58297451]
[1728045273961,0.8115,2382.9,2382.2,3.58297451]
[1728045273962,4.19714,2382.6,2382.2,4.26134832]
[1728045274247,4.19745,2382.4,2382.3,4.81134832]
[1728045274406,4.19745,2382.4,2381.7,8.39713]
[1728045274610,5.0081,2382.9,2382.3,4.30182543]
[1728045274611,4.197,2382.7,2382.3,4.30182543]
[1728045274816,5.00815,2382.9,2382.6,3.5848343]
[1728045275158,0.8115,2382.9,2382.7,0.55]
[1728045275352,0.8115,2382.9,2382.6,3.5848343]
[1728045275353,4.19674,2382.8,2382.6,3.5848343]
[1728045275592,4.19656,2382.9,2382.5,0.55]
[1728045275708,4.19656,2382.9,2382.4,0.55]
[1728045275910,4.19661,2382.9,2382.2,0.55]
[1728045276138,4.19631,2383.1,2382.6,0.55]
[1728045276341,5.02322,2383.3,2382.8,0.55]
[1728045276648,4.19552,2383.5,2382.8,0.55]
[1728045276649,4.19561,2383.5,2382.8,0.55]
[1728045276859,4.19586,2383.3,2382.8,0.55]
[1728045277068,8.39184,2383.3,2382.8,0.55]
[1728045277350,4.19586,2383.3,2382.8,0.55]
[1728045277558,4.19561,2383.5,2382.8,0.55]
[1728045277709,4.19561,2383.5,2382.8,4.74662]
[1728045277911,3.0,2383.4,2383.0,0.55]
[1728045278541,4.98312,2383.7,2383.0,0.55]
[1728045278768,4.19565,2383.5,2383.0,0.55]
[1728045278961,4.19565,2383.5,2383.0,4.74636]
[1728045279249,4.19465,2384.0,2382.8,0.55]
[1728045279250,4.19596,2383.3,2382.8,0.55]
[1728045279552,4.19596,2383.3,2382.7,0.55]
[1728045279763,3.0,2383.2,2382.6,0.55]
[1728045280060,3.0,2383.2,2382.6,4.74692]
[1728045280354,3.0,2383.2,2382.8,0.55]
[1728045280355,7.19605,2383.2,2382.8,0.55]
[1728045280673,4.19623,2383.1,2382.6,0.55]
[1728045280839,4.19623,2383.1,2382.5,0.7567]
[1728045280840,3.0,2383.0,2382.5,0.7567]
[1728045281015,4.19604,2383.2,2382.6,4.19696]
[1728045281206,4.19604,2383.2,2382.6,8.39394]
[1728045281207,3.0,2383.1,2382.6,8.39394]
[1728045281408,3.0,2383.5,2382.7,4.1968]
[1728045281654,3.0,2383.3,2382.7,4.1968]
[1728045281974,3.0,2383.4,2382.8,0.55]
[1728045282114,3.0,2383.4,2382.8,4.74662]
[1728045282312,3.0,2383.4,2382.9,4.19654]
[1728045282509,4.19524,2383.7,2383.1,4.1961]
[1728045282830,4.19524,2383.7,2383.0,0.55]
[1728045283015,4.19546,2383.6,2383.0,0.55]
[1728045283209,4.19546,2383.6,2383.0,4.74634]
[1728045283415,4.19546,2383.6,2383.0,4.74637]
[1728045283958,3.0,2383.6,2383.1,4.19617]
[1728045284166,3.0,2383.6,2383.2,0.55]
[1728045284826,7.19534,2383.6,2383.2,0.55]
[1728045285032,0.8063,2384.3,2383.4,0.55]
[1728045285248,4.19508,2383.8,2383.4,0.55]
[1728045285790,4.19491,2383.9,2383.4,0.55]
[1728045286002,5.00043,2384.3,2383.5,4.19549]
[1728045286157,4.19413,2384.3,2383.6,0.55]
[1728045286353,4.19433,2384.2,2383.6,4.74526]
[1728045286698,4.19433,2384.2,2383.6,0.55]
[1728045286699,4.19439,2384.2,2383.6,0.55]
[1728045286905,4.19413,2384.3,2383.6,0.55]
[1728045287084,4.19413,2384.3,2382.8,3.0]
[1728045287085,4.19546,2383.6,2382.9,4.19644]
[1728045287403,4.19517,2383.7,2383.1,4.19616]
[1728045287585,3.0,2383.7,2383.1,4.19611]
[1728045287795,3.0,2383.7,2383.2,0.7821]
[1728045288098,4.19506,2383.8,2383.2,0.7821]
[1728045288099,4.19499,2383.8,2383.2,4.97808]
[1728045288468,4.19499,2383.8,2383.2,0.7821]
[1728045288884,4.19499,2383.8,2383.2,4.97803]
[1728045289093,4.19499,2383.8,2383.2,0.7821]
[1728045289296,4.19499,2383.8,2383.3,4.19583]
[1728045289604,4.19499,2383.8,2383.2,4.97808]
[1728045289824,4.19499,2383.8,2383.2,0.7821]
[1728045290096,4.19525,2383.7,2383.2,0.7821]
[1728045290669,4.19535,2383.6,2383.2,0.7821]
[1728045290853,4.19525,2383.7,2383.2,0.7821]
[1728045291054,9.69129319,2383.9,2382.9,0.8036]
[1728045291254,7.41,2384.0,2382.9,0.8036]
[1728045291255,3.0,2384.0,2382.9,0.8036]
[1728045291497,8.39091,2383.6,2382.9,0.8036]
[1728045291721,4.19517,2383.7,2383.1,4.19608]
[1728045291998,3.0,2384.0,2382.9,0.8036]
[1728045292199,5.93372177,2384.7,2382.9,0.8036]
[1728045292200,4.19516,2383.7,2383.1,4.19619]
[1728045292405,4.19516,2383.7,2382.9,0.8036]
[1728045292406,4.19491,2383.9,2383.2,4.19589]
[1728045292772,3.0,2384.0,2383.0,0.55]
[1728045292961,4.19456,2384.1,2383.6,4.19529]
[1728045293163,4.19456,2384.1,2383.6,4.98699]
[1728045293390,3.0,2384.2,2383.7,4.19515]
[1728045293589,3.0,2384.2,2383.6,4.98699]
[1728045293816,3.0,2384.2,2383.8,4.19497]
[1728045294323,4.19387,2384.5,2383.8,4.19485]
[1728045294684,4.19393,2384.4,2383.8,4.19485]
[1728045294885,4.19387,2384.5,2383.9,4.19478]
[1728045295215,4.19387,2384.5,2383.9,8.38948]
[1728045295422,4.1935,2384.7,2384.1,4.19443]
[1728045295729,4.1935,2384.7,2384.1,8.38879]
[1728045295938,4.1931,2384.9,2384.1,8.38879]
[1728045295939,4.1931,2384.9,2384.1,4.19436]
[1728045296091,8.38626,2384.9,2384.3,4.19409]
[1728045296427,0.7695,2385.1,2384.5,4.1937]
[1728045296428,4.19278,2385.1,2384.5,4.1937]
[1728045296799,4.19246,2385.3,2384.2,0.8259]
[1728045297000,4.19246,2385.3,2384.6,4.19353]
[1728045297001,4.1927,2385.1,2384.6,4.19353]
[1728045297215,4.1927,2385.1,2384.5,4.19374]
[1728045297216,4.19244,2385.3,2384.7,4.19339]
[1728045297533,4.19176,2385.7,2384.9,4.19294]
[1728045297717,4.192,2385.5,2385.0,0.82]
[1728045297918,4.19186,2385.6,2385.1,4.19267]
[1728045298091,4.19186,2385.6,2385.0,0.82]
[1728045298092,4.1914,2385.9,2385.0,0.82]
[1728045298293,4.19175,2385.7,2385.1,8.38524]
[1728045298531,4.19175,2385.7,2385.1,4.19257]
[1728045298833,4.19143,2385.9,2385.3,4.19224]
[1728045299036,4.19102,2386.1,2385.5,4.19188]
[1728045299188,4.19063,2386.3,2385.1,4.19259]
[1728045299501,4.19063,2386.3,2385.0,0.82]
[1728045299502,4.19098,2386.1,2385.4,4.1921]
[1728045299702,4.19098,2386.1,2385.5,4.19199]
[1728045299904,4.19098,2386.1,2385.3,4.19223]
[1728045300115,4.19028,2386.5,2385.9,4.19129]
[1728045300116,4.19036,2386.5,2385.9,4.19129]
[1728045300326,4.19007,2386.6,2385.9,4.19129]
[1728045300537,4.19003,2386.7,2385.9,4.19129]
[1728045300888,4.19002,2386.7,2385.9,5.50589]
[1728045301090,5.49646319,2387.1,2385.9,5.50589]
[1728045301298,4.19011,2386.6,2386.0,4.19099]
[1728045301497,0.65708709,2386.7,2386.2,4.19074]
[1728045301813,0.65708709,2386.7,2386.4,4.19039]